bitfinex-derivatives/quotes_ETHF0:USTF0_20230105
["timestamp","ask_amount","ask_price","bid_price","bid_amount"]
[1672908914695,9.2043612,1250.6,1250.5,10.39621817]
[1672908915650,6.2043612,1250.6,1250.5,10.39621817]
[1672908915853,3.2078,1250.6,1250.5,11.81337061]
[1672908916706,6.2078,1250.6,1250.5,11.81337061]
[1672908917222,3.2078,1250.6,1250.5,11.81337061]
[1672908917434,6.2043612,1250.6,1250.5,10.39621817]
[1672908919114,3.2078,1250.6,1250.5,11.81337044]
[1672908919326,6.2043612,1250.6,1250.5,10.39621817]
[1672908919532,3.2078,1250.6,1250.5,11.81337042]
[1672908920175,6.2078,1250.6,1250.5,11.81337042]
[1672908921121,9.2043612,1250.6,1250.5,10.39621817]
[1672908921956,9.2043612,1250.6,1250.5,12.19292744]
[1672908922273,9.2043612,1250.6,1250.5,6.79670927]
[1672908923114,6.2043612,1250.6,1250.5,6.79670927]
[1672908923326,6.2043612,1250.6,1250.5,9.19292744]
[1672908923733,6.2043612,1250.6,1250.5,6.79670927]
[1672908927850,2.9965612,1250.6,1250.5,6.79670927]
[1672908928057,6.2043612,1250.6,1250.5,6.79670927]
[1672908931107,9.2043612,1250.6,1250.5,6.79670927]
[1672908931629,9.2043612,1250.6,1250.5,7.99454942]
[1672908932250,6.2078,1250.6,1250.5,7.99454942]
[1672908934464,6.2078,1250.6,1250.5,5.0]
[1672908934679,9.793253,1250.6,1250.4,2.99454942]
[1672908934877,9.793253,1250.6,1250.4,1.19784015]
[1672908935197,13.9762815,1250.6,1250.4,1.19784015]
[1672908935412,3.585453,1250.5,1250.4,1.19784015]
[1672908935821,3.0,1250.4,1250.3,7.99454942]
[1672908936031,9.20233785,1250.4,1250.3,7.99454942]
[1672908937719,9.20233785,1250.4,1250.3,6.19784015]
[1672908938351,11.59706216,1250.4,1250.3,7.99454942]
[1672908939195,11.59706216,1250.4,1250.3,10.99454942]
[1672908939614,11.59706216,1250.4,1250.3,7.99454942]
[1672908939931,8.60252431,1250.4,1250.3,7.99454942]
[1672908940455,8.60252431,1250.4,1250.3,10.99454942]
[1672908940666,5.60252431,1250.4,1250.3,10.99454942]
[1672908942657,6.20233785,1250.4,1250.3,6.19784015]
[1672908942870,9.20233785,1250.4,1250.3,6.19784015]
[1672908943712,9.20233785,1250.4,1250.3,5.0]
[1672908943922,9.20233785,1250.4,1250.3,6.19784015]
[1672908944243,9.20233785,1250.4,1250.3,5.0]
[1672908944450,11.59525567,1250.4,1250.3,6.19784015]
[1672908945614,11.59525567,1250.4,1250.3,5.0]
[1672908946872,8.38745567,1250.4,1250.3,5.0]
[1672908947075,8.59525567,1250.4,1250.3,5.0]
[1672908947388,5.60071782,1250.4,1250.3,6.19784015]
[1672908950231,2.39291782,1250.4,1250.3,6.19784015]
[1672908950453,5.60071782,1250.4,1250.3,6.19784015]
[1672908952021,2.39291782,1250.4,1250.3,6.19784015]
[1672908952233,5.60071782,1250.4,1250.3,6.19784015]
[1672908952437,2.39291782,1250.4,1250.3,6.19784015]
[1672908952857,5.60071782,1250.4,1250.3,6.19784015]
[1672908954120,5.60071782,1250.4,1250.3,5.0]
[1672908954650,5.60071782,1250.4,1250.3,6.19784015]
[1672908954860,2.39291782,1250.4,1250.3,6.19784015]
[1672908955175,5.60071782,1250.4,1250.3,6.19784015]
[1672908955807,8.59525567,1250.4,1250.3,5.0]
[1672908956860,5.60071782,1250.4,1250.3,5.0]
[1672908957592,8.59525567,1250.4,1250.3,6.19784015]
[1672908957801,5.60071782,1250.4,1250.3,6.19784015]
[1672908958326,8.59525567,1250.4,1250.3,6.19784015]
[1672908958745,5.38745567,1250.4,1250.3,6.19784015]
[1672908958953,8.59525567,1250.4,1250.3,6.19784015]
[1672908959165,5.60071782,1250.4,1250.3,6.19784015]
[1672908959898,8.59525567,1250.4,1250.3,6.19784015]
[1672908962002,6.20233785,1250.4,1250.3,6.19784015]
[1672908962953,8.59566531,1250.4,1250.3,6.19784015]
[1672908963578,6.20233785,1250.4,1250.3,6.19784015]
[1672908964733,2.99453785,1250.4,1250.3,6.19784015]
[1672908965048,6.20233785,1250.4,1250.3,6.19784015]
[1672908967889,6.20233785,1250.4,1250.3,7.99454942]
[1672908969047,2.99453785,1250.4,1250.3,7.99454942]
[1672908969255,6.20233785,1250.4,1250.3,7.99454942]
[1672908970834,2.99453785,1250.4,1250.3,7.99454942]
[1672908971036,6.20233785,1250.4,1250.3,7.99454942]
[1672908971879,6.20233785,1250.4,1250.3,6.79670927]
[1672908973146,3.2078,1250.4,1250.3,7.99548864]
[1672908973358,6.20380537,1250.4,1250.3,6.79670927]
[1672908973673,3.2078,1250.4,1250.3,9.19292744]
[1672908974196,4.085453,1250.5,1250.3,9.19292744]
[1672908974408,6.2078,1250.4,1250.3,9.19292744]
[1672908977564,3.2078,1250.4,1250.3,9.19292744]
[1672908977877,3.2078,1250.4,1250.3,9.19555566]
[1672908978087,3.2078,1250.4,1250.3,7.39621817]
[1672908983442,3.2078,1250.4,1250.3,6.79952775]
[1672908983654,3.2078,1250.4,1250.3,9.19574592]
[1672908983972,3.2078,1250.4,1250.3,4.19574592]
[1672908984823,4.085453,1250.5,1250.3,4.19574592]
[1672908985128,3.2078,1250.4,1250.3,9.19574592]
[1672908985549,6.2078,1250.4,1250.3,9.19574592]
[1672908986078,3.0,1250.4,1250.3,9.19574592]
[1672908986287,4.085453,1250.5,1250.3,9.19574592]
[1672908986599,3.2078,1250.4,1250.3,9.19574592]
[1672908986815,6.2078,1250.4,1250.3,9.19574592]
[1672908987865,3.0,1250.4,1250.3,9.19574592]
[1672908988076,3.2078,1250.4,1250.3,9.19574592]
[1672908988286,3.0,1250.4,1250.3,9.19574592]
[1672908988488,6.2078,1250.4,1250.3,9.19574592]
[1672908990174,3.0,1250.4,1250.3,9.19574592]
[1672908990387,6.2078,1250.4,1250.3,9.19574592]
[1672908990699,3.2078,1250.4,1250.3,9.19574592]
[1672908991646,6.2078,1250.4,1250.3,9.19574592]
[1672908994590,6.2078,1250.4,1250.3,7.39621817]
[1672908994797,3.2078,1250.4,1250.3,7.39621817]
[1672908995014,6.2078,1250.4,1250.3,9.19579302]
[1672908995320,6.2078,1250.4,1250.3,6.79957485]
[1672908995536,9.793253,1250.4,1250.3,6.79957485]
[1672908996057,6.793253,1250.4,1250.3,6.79957485]
[1672908996264,3.2078,1250.4,1250.3,9.19579302]
[1672908996478,6.20604799,1250.4,1250.3,8.81362429]
[1672908997848,6.20604799,1250.4,1250.3,11.80969756]
[1672908998051,8.60401571,1250.4,1250.3,11.80969756]
[1672908998366,5.39621571,1250.4,1250.3,11.80969756]
[1672908998582,6.20604799,1250.4,1250.3,11.80969756]
[1672908999842,8.60404401,1250.4,1250.3,11.80969756]
[1672909000054,8.60404401,1250.4,1250.3,8.81362429]
[1672909001311,8.60404401,1250.4,1250.3,11.80969756]
[1672909001732,5.60579602,1250.4,1250.3,9.41347939]
[1672909002156,5.60579602,1250.4,1250.3,12.41347939]
[1672909002366,7.40374611,1250.4,1250.3,12.41347939]
[1672909003208,4.19594611,1250.4,1250.3,12.41347939]
[1672909004150,1.79795009,1250.4,1250.3,12.41347939]
[1672909008563,1.79795009,1250.4,1250.3,14.80939483]
[1672909011821,1.79795009,1250.4,1250.3,11.81332156]
[1672909013288,4.19594611,1250.4,1250.3,11.81332156]
[1672909014451,7.40374611,1250.4,1250.3,11.81332156]
[1672909016235,5.00575009,1250.4,1250.3,11.81332156]
[1672909017707,1.79795009,1250.4,1250.3,11.81332156]
[1672909019072,1.79795009,1250.4,1250.3,14.80939483]
[1672909022954,1.79795009,1250.4,1250.3,12.41347939]
[1672909024747,7.40374611,1250.5,1250.3,12.41347939]
[1672909024950,5.60579602,1250.5,1250.4,5.39493066]
[1672909026436,5.60579602,1250.5,1250.4,7.1912228]
[1672909027374,2.39799602,1250.5,1250.4,7.1912228]
[1672909028116,2.39799602,1250.5,1250.4,5.39493066]
[1672909028319,4.19452847,1250.5,1250.4,6.81215064]
[1672909029271,2.39799602,1250.5,1250.4,6.81215064]
[1672909029687,2.39799602,1250.5,1250.4,5.39493066]
[1672909034214,2.39799602,1250.5,1250.4,6.81217805]
[1672909036003,8.60404401,1250.5,1250.4,6.81217805]
[1672909036317,5.39624401,1250.5,1250.4,6.81217805]
[1672909037056,8.60404401,1250.5,1250.4,6.81217805]
[1672909039050,5.39624401,1250.5,1250.4,6.81217805]
[1672909039263,8.60404401,1250.5,1250.4,6.81217805]
[1672909039468,5.39624401,1250.5,1250.4,6.81217805]
[1672909039682,8.60404401,1250.5,1250.4,6.81217805]
[1672909039993,6.20604799,1250.5,1250.4,6.81217805]
[1672909041047,6.20604799,1250.5,1250.4,5.39493066]
[1672909041466,2.99824799,1250.5,1250.4,5.39493066]
[1672909041782,6.20604799,1250.5,1250.4,5.39493066]
[1672909044518,2.99824799,1250.5,1250.4,5.39493066]
[1672909044721,6.20604799,1250.5,1250.4,5.39493066]
[1672909045889,2.99824799,1250.5,1250.4,5.39493066]
[1672909046197,6.20604799,1250.5,1250.4,5.39493066]
[1672909046722,2.99824799,1250.5,1250.4,5.39493066]
[1672909047038,6.20604799,1250.5,1250.4,5.39493066]
[1672909047774,2.99824799,1250.5,1250.4,5.39493066]
[1672909047985,6.20604799,1250.5,1250.4,5.39493066]
[1672909051558,2.99824799,1250.5,1250.4,5.39493066]
[1672909051881,6.20604799,1250.5,1250.4,5.39493066]
[1672909052193,6.20604799,1250.5,1250.4,6.81222811]
[1672909052711,5.60574799,1250.5,1250.4,9.80830138]
[1672909052922,8.60399598,1250.5,1250.4,6.81222811]
[1672909053666,5.39619598,1250.5,1250.4,6.81222811]
[1672909054814,2.99824799,1250.5,1250.4,6.81222811]
[1672909055870,6.20604799,1250.5,1250.4,6.81222811]
[1672909059026,6.19871149,1250.5,1250.4,6.81222811]
[1672909059336,8.59686437,1250.5,1250.4,9.80830138]
[1672909059761,6.19871149,1250.5,1250.4,6.81222811]
[1672909060819,2.99091149,1250.5,1250.4,6.81222811]
[1672909061237,6.19871149,1250.5,1250.4,6.81222811]
[1672909061556,2.99091149,1250.5,1250.4,6.81222811]
[1672909061757,6.19871149,1250.5,1250.4,6.81222811]
[1672909062082,2.99091149,1250.5,1250.4,6.81222811]
[1672909062503,6.19871149,1250.5,1250.4,6.81222811]
[1672909063969,2.99091149,1250.5,1250.4,6.81222811]
[1672909064180,6.19871149,1250.5,1250.4,6.81222811]
[1672909064706,2.99091149,1250.5,1250.4,6.81222811]
[1672909065016,6.19871149,1250.5,1250.4,6.81222811]
[1672909067333,5.60594254,1250.5,1250.4,25.70508561]
[1672909070910,2.39814254,1250.5,1250.4,25.70508561]
[1672909075745,2.39814254,1250.5,1250.4,28.10213009]
[1672909076374,2.39814254,1250.5,1250.4,25.10605682]
[1672909078583,2.39814254,1250.5,1250.4,28.10213009]
[1672909079729,1.79770359,1250.5,1250.4,25.70508561]
[1672909079936,2.9961047,1250.5,1250.4,22.70901234]
[1672909080473,1.79770359,1250.5,1250.4,25.70461703]
[1672909082050,4.19584613,1250.5,1250.4,25.70461703]
[1672909082263,2.39814254,1250.5,1250.4,25.70461703]
[1672909083210,2.39814254,1250.5,1250.4,22.70461703]
[1672909083425,2.39814254,1250.5,1250.4,22.10588144]
[1672909083945,2.39814254,1250.5,1250.4,22.10591274]
[1672909086258,5.60594254,1250.5,1250.4,22.10591274]
[1672909086576,2.39814254,1250.5,1250.4,22.10591274]
[1672909086886,5.60594254,1250.5,1250.4,22.10591274]
[1672909087415,5.60594254,1250.5,1250.4,25.10151743]
[1672909087728,5.60594254,1250.5,1250.4,22.10591274]
[1672909088044,5.60594254,1250.5,1250.4,25.10151743]
[1672909088254,5.60594254,1250.5,1250.4,22.10591274]
[1672909088995,8.60232815,1250.5,1250.4,22.10591274]
[1672909090777,6.20418561,1250.5,1250.4,22.10591274]
[1672909091194,8.60195029,1250.5,1250.4,22.10591274]
[1672909091408,6.20418561,1250.5,1250.4,22.10591274]
[1672909094566,2.99638561,1250.5,1250.4,22.10591274]
[1672909094885,6.20418561,1250.5,1250.4,22.10591274]
[1672909104029,8.60203018,1250.5,1250.4,22.10591274]
[1672909105391,6.20418561,1250.5,1250.4,22.10591274]
[1672909110014,2.99638561,1250.5,1250.4,22.10591274]
[1672909110216,6.20418561,1250.5,1250.4,22.10591274]
[1672909110959,5.60574534,1250.5,1250.4,22.70461703]
[1672909111801,8.60213095,1250.5,1250.4,22.70461703]
[1672909115484,6.20418561,1250.5,1250.4,22.70461703]
[1672909116536,6.20418561,1250.5,1250.4,25.10342592]
[1672909121476,6.20418561,1250.5,1250.4,17.10442592]
[1672909121786,3.2078,1250.5,1250.4,2.39880889]
[1672909121989,6.2078,1250.5,1250.4,4.19811986]
[1672909122523,6.2078,1250.5,1250.4,1.79931097]
[1672909123568,6.2078,1250.5,1250.4,2.99860506]
[1672909123779,6.2078,1250.5,1250.4,1.19929409]
[1672909123995,9.793253,1250.5,1250.4,1.19929409]
[1672909125044,6.2078,1250.5,1250.4,1.19929409]
[1672909128509,3.0,1250.5,1250.4,1.19929409]
[1672909128827,6.2078,1250.5,1250.4,1.19929409]
[1672909130090,6.2078,1250.5,1250.4,1.19427298]
[1672909131455,3.0,1250.5,1250.4,1.19427298]
[1672909131666,6.2078,1250.5,1250.4,4.19427298]
[1672909132193,6.2078,1250.5,1250.4,1.19427298]
[1672909132396,6.2078,1250.5,1250.4,4.19427298]
[1672909133032,3.0,1250.5,1250.4,1.19427298]
[1672909133231,6.2078,1250.5,1250.4,1.19427298]
[1672909134082,9.20076689,1250.5,1250.4,1.19427298]
[1672909134296,9.20076689,1250.5,1250.4,4.19427298]
[1672909134818,5.99296689,1250.5,1250.4,4.19427298]
[1672909135031,9.20076689,1250.5,1250.4,1.19427298]
[1672909135557,5.99296689,1250.5,1250.4,1.19427298]
[1672909135768,9.20076689,1250.5,1250.4,1.19427298]
[1672909136078,5.99296689,1250.5,1250.4,1.19427298]
[1672909136291,9.20076689,1250.5,1250.4,1.19427298]
[1672909137757,6.20076689,1250.5,1250.4,1.19427298]
[1672909138073,6.20076689,1250.5,1250.4,5.99358395]
[1672909139337,6.20076689,1250.5,1250.4,4.79931097]
[1672909139549,2.99296689,1250.5,1250.4,4.79931097]
[1672909139860,6.20076689,1250.5,1250.4,4.79931097]
[1672909141970,2.99296689,1250.5,1250.4,4.79931097]
[1672909142184,6.20076689,1250.5,1250.4,4.79931097]
[1672909143341,5.60249183,1250.5,1250.4,7.19811986]
[1672909143655,5.60249183,1250.5,1250.4,7.19545182]
[1672909145758,2.39469183,1250.5,1250.4,7.19545182]
[1672909145962,5.60249183,1250.5,1250.4,7.19545182]
[1672909147017,5.60249183,1250.5,1250.4,4.79664293]
[1672909147327,5.60249183,1250.5,1250.4,7.19545182]
[1672909147961,5.60249183,1250.5,1250.4,6.81603675]
[1672909148172,7.39898808,1250.5,1250.4,6.81603675]
[1672909148490,7.39893446,1250.5,1250.4,6.81603675]
[1672909148693,5.00424263,1250.5,1250.4,6.81603675]
[1672909148905,5.00424263,1250.5,1250.4,9.81164144]
[1672909150277,5.00424263,1250.5,1250.4,6.81603675]
[1672909150904,1.79644263,1250.5,1250.4,6.81603675]
[1672909152056,1.79644263,1250.5,1250.4,25.04560579]
[1672909154055,4.19113446,1250.5,1250.4,25.04560579]
[1672909154477,1.79644263,1250.5,1250.4,25.04560579]
[1672909155110,5.00424263,1250.5,1250.4,25.04560579]
[1672909155742,7.39893446,1250.5,1250.4,25.04560579]
[1672909156055,7.39893446,1250.5,1250.4,23.62837793]
[1672909158581,7.39893446,1250.5,1250.4,25.04560972]
[1672909159733,7.39893446,1250.5,1250.4,23.62837793]
[1672909161111,7.39893446,1250.5,1250.4,25.04560698]
[1672909161528,7.39893446,1250.5,1250.4,23.62837793]
[1672909161956,4.19113446,1250.5,1250.4,23.62837793]
[1672909162263,7.39893446,1250.5,1250.4,23.62837793]
[1672909162476,4.19113446,1250.5,1250.4,23.62837793]
[1672909162683,7.39893446,1250.5,1250.4,23.62837793]
[1672909162884,4.19113446,1250.5,1250.4,23.62837793]
[1672909163105,5.00424263,1250.5,1250.4,23.62837793]
[1672909164159,7.39893446,1250.5,1250.4,23.62837793]
[1672909164481,7.39893446,1250.5,1250.4,25.04560992]
[1672909165006,4.19113446,1250.5,1250.4,25.04560992]
[1672909165217,7.39893446,1250.5,1250.4,25.04560992]
[1672909165426,4.19113446,1250.5,1250.4,25.04560992]
[1672909165650,7.39893446,1250.5,1250.4,25.04560992]
[1672909166588,4.19113446,1250.5,1250.4,25.04560992]
[1672909166806,7.39893446,1250.5,1250.4,25.04560992]
[1672909169326,4.19113446,1250.5,1250.4,25.04560992]
[1672909169536,7.39893446,1250.5,1250.4,25.04560992]
[1672909169847,4.19113446,1250.5,1250.4,25.04560992]
[1672909170053,7.39893446,1250.5,1250.4,25.04560992]
[1672909170262,5.60249183,1250.5,1250.4,25.04560992]
[1672909170584,7.39912174,1250.5,1250.4,25.04560992]
[1672909170999,5.60249183,1250.5,1250.4,25.04560992]
[1672909171209,5.59825989,1250.5,1250.4,25.04560992]
[1672909171425,7.39482098,1250.5,1250.4,25.04560992]
[1672909171734,5.59825989,1250.5,1250.4,25.04560992]
[1672909171950,7.39481411,1250.5,1250.4,25.04560992]
[1672909172265,5.59825989,1250.5,1250.4,25.04560992]
[1672909176152,5.59825989,1250.5,1250.4,28.04121461]
[1672909177415,2.39045989,1250.5,1250.4,28.04121461]
[1672909177620,5.59825989,1250.5,1250.4,28.04121461]
[1672909178465,5.59825989,1250.5,1250.4,20.04221461]
[1672909178681,5.59825989,1250.5,1250.4,28.04121461]
[1672909180039,8.59122678,1250.5,1250.4,28.04121461]
[1672909180251,8.59122678,1250.5,1250.4,25.64240572]
[1672909180779,5.59825989,1250.5,1250.4,25.64240572]
[1672909182882,2.39045989,1250.5,1250.4,25.64240572]
[1672909195489,4.18914391,1250.5,1250.4,22.64680103]
[1672909196436,1.79868402,1250.5,1250.4,22.64680103]
[1672909200427,1.79868402,1250.5,1250.4,25.64380558]
[1672909200638,1.79868402,1250.5,1250.4,24.53643924]
[1672909200852,1.79868402,1250.5,1250.4,22.64680103]
[1672909201063,1.79868402,1250.5,1250.4,25.64381345]
[1672909201380,4.19585905,1250.5,1250.4,25.64381345]
[1672909201794,4.19505516,1250.5,1250.4,25.64381345]
[1672909202424,1.79788013,1250.5,1250.4,27.53341748]
[1672909202634,1.79788013,1250.5,1250.4,25.64377235]
[1672909202850,4.19505516,1250.5,1250.4,25.64377235]
[1672909203057,1.79788013,1250.5,1250.4,25.64377235]
[1672909203268,1.79788013,1250.5,1250.4,22.64680103]
[1672909203473,4.19505516,1250.5,1250.4,14.6448235]
[1672909203689,3.2078,1250.5,1250.4,1.79853631]
[1672909203895,6.2078,1250.5,1250.3,6.79853631]
[1672909204106,2.99490893,1250.4,1250.3,6.79853631]
[1672909204315,5.99490893,1250.4,1250.3,6.79853631]
[1672909205679,5.99490893,1250.4,1250.3,9.19594425]
[1672909205892,8.38971729,1250.4,1250.3,9.19594425]
[1672909206310,8.38971729,1250.4,1250.3,6.79793652]
[1672909206628,5.99490893,1250.4,1250.2,4.19594425]
[1672909206840,8.60245766,1250.3,1250.2,2.39800773]
[1672909207043,8.60245766,1250.3,1250.2,4.19533896]
[1672909207890,8.60245766,1250.3,1250.2,1.79733123]
[1672909208513,11.59736659,1250.3,1250.2,1.79733123]
[1672909208939,8.60245766,1250.3,1250.2,1.79733123]
[1672909209891,8.60245766,1250.3,1250.1,4.19533896]
[1672909210102,2.29413593,1250.2,1250.1,4.19533896]
[1672909210521,2.29413593,1250.2,1250.1,7.19533896]
[1672909210940,1.79413593,1250.2,1250.1,7.19533896]
[1672909212530,1.79413593,1250.2,1250.1,4.19533896]
[1672909213031,1.79413593,1250.2,1250.1,7.19533896]
[1672909213243,4.18879359,1250.2,1250.0,9.19293443]
[1672909213451,5.00101276,1250.1,1250.0,9.19293443]
[1672909213665,5.00101276,1250.1,1250.0,12.19293443]
[1672909213877,3.2078,1250.1,1250.0,9.7949267]
[1672909216934,3.2078,1250.1,1250.0,12.19293443]
[1672909217564,3.2078,1250.1,1250.0,10.39800773]
[1672909217776,3.2078,1250.1,1250.0,12.19113734]
[1672909218291,3.2078,1250.1,1250.0,9.79312961]
[1672909223553,3.2078,1250.1,1250.0,6.79312961]
[1672909223971,3.2078,1250.1,1250.0,5.0]
[1672909224716,1.79321276,1250.2,1250.0,5.0]
[1672909225031,3.2078,1250.1,1250.0,5.0]
[1672909225445,1.79321276,1250.2,1250.0,5.0]
[1672909225658,3.2078,1250.1,1250.0,5.0]
[1672909226388,3.7078,1250.1,1250.0,5.0]
[1672909228277,3.7078,1250.1,1249.9,1.79312961]
[1672909228493,5.50101276,1250.1,1249.8,6.79312961]
[1672909228704,3.2078,1249.9,1249.8,9.79312961]
[1672909232913,3.2078,1249.9,1249.8,6.79312961]
[1672909233114,3.2078,1249.9,1249.8,8.0]
[1672909233537,3.2078,1249.9,1249.7,1.79312961]
[1672909233747,3.2078,1249.9,1249.8,3.0]
[1672909237844,7.39567042,1250.1,1249.8,23.18399811]
[1672909238053,3.2078,1250.1,1249.9,1.79312961]
[1672909238268,8.00101276,1250.1,1250.0,3.0]
[1672909240370,8.60245766,1250.1,1250.0,3.0]
[1672909240999,10.3947659,1250.1,1250.0,3.0]
[1672909241739,8.60245766,1250.1,1250.0,3.0]
[1672909241950,10.3947666,1250.1,1250.0,3.0]
[1672909242889,10.3947666,1250.1,1249.9,1.79312961]
[1672909243106,1.79235143,1250.0,1249.9,1.79312961]
[1672909243307,4.79235143,1250.0,1249.9,1.79312961]
[1672909243517,4.79235143,1250.0,1249.8,4.79312961]
[1672909243731,3.2078,1249.9,1249.8,7.19113734]
[1672909244049,3.2078,1249.9,1249.8,5.39800773]
[1672909246044,3.2078,1249.9,1249.8,6.81586693]
[1672909246467,4.79235143,1250.0,1249.8,6.81586693]
[1672909246673,3.2078,1249.9,1249.8,5.39800773]
[1672909246889,3.2078,1249.9,1249.8,6.81586529]
[1672909248159,5.00015143,1249.9,1249.8,4.79541597]
[1672909248372,5.00015143,1249.9,1249.8,7.1934237]
[1672909248993,5.00015143,1249.9,1249.8,4.79541597]
[1672909249313,5.00015143,1249.9,1249.8,7.1934237]
[1672909249730,5.00015143,1249.9,1249.8,4.79541597]
[1672909249942,5.00015143,1249.9,1249.8,7.1934237]
[1672909251734,5.00015143,1249.9,1249.8,5.39800773]
[1672909252987,5.00015143,1249.9,1249.8,4.19389543]
[1672909253203,5.00015143,1249.9,1249.8,1.7958877]
[1672909253414,7.39480909,1249.9,1249.8,4.7958877]
[1672909253628,5.00015143,1249.9,1249.8,4.7958877]
[1672909255098,5.00015143,1249.9,1249.8,1.7958877]
[1672909255299,5.00015143,1249.9,1249.8,4.7958877]
[1672909256148,7.39480909,1249.9,1249.8,5.99322881]
[1672909256360,7.39480909,1249.9,1249.8,4.7958877]
[1672909258249,5.60245766,1249.9,1249.8,1.7958877]
[1672909259723,5.60245766,1249.9,1249.8,4.7958877]
[1672909259934,7.39717634,1249.9,1249.8,7.19389543]
[1672909260668,7.39717634,1249.9,1249.8,4.7958877]
[1672909261296,5.60245766,1249.9,1249.8,4.7958877]
[1672909261930,5.60245766,1249.9,1249.8,7.19389543]
[1672909262142,5.00310436,1249.9,1249.8,6.81590598]
[1672909263397,5.60245766,1249.9,1249.8,5.39800773]
[1672909264133,5.60245766,1249.9,1249.8,7.19563861]
[1672909264770,5.60245766,1249.9,1249.8,4.19563861]
[1672909265611,5.60245766,1249.9,1249.8,2.39800773]
[1672909265812,8.59736659,1249.9,1249.8,4.19620196]
[1672909266976,5.38956659,1249.9,1249.8,4.19620196]
[1672909267178,8.59736659,1249.9,1249.8,4.19620196]
[1672909267813,5.38956659,1249.9,1249.8,4.19620196]
[1672909268025,5.38956659,1249.9,1249.8,2.39800773]
[1672909268237,8.59736659,1249.9,1249.8,2.39800773]
[1672909268449,6.20270893,1249.9,1249.8,2.99769015]
[1672909268759,9.20270893,1249.9,1249.8,2.99769999]
[1672909268966,6.20270893,1249.9,1249.8,1.79861573]
[1672909273067,5.60266965,1249.9,1249.8,2.39800773]
[1672909273383,8.59757858,1249.9,1249.8,4.19622459]
[1672909273591,6.20270893,1249.9,1249.8,1.79821686]
[1672909274751,2.99490893,1249.9,1249.8,1.79821686]
[1672909274957,6.20270893,1249.9,1249.8,1.79821686]
[1672909276425,2.99490893,1249.9,1249.8,1.79821686]
[1672909276639,6.20270893,1249.9,1249.8,1.79821686]
[1672909277588,2.99490893,1249.9,1249.8,1.79821686]
[1672909277799,6.20270893,1249.9,1249.8,1.79821686]
[1672909278112,6.20270893,1249.9,1249.8,2.99695542]
[1672909279377,6.20270893,1249.9,1249.8,1.19873856]
[1672909279690,6.20270893,1249.9,1249.8,2.99695542]
[1672909281692,6.2078,1249.9,1249.8,1.19873856]
[1672909283473,3.2078,1249.9,1249.8,1.19873856]
[1672909283784,6.2078,1249.9,1249.8,1.19873856]
[1672909287782,3.0,1249.9,1249.8,1.19873856]
[1672909287993,6.2078,1249.9,1249.8,1.19873856]
[1672909290201,9.2011642,1249.9,1249.8,1.19873856]
[1672909290935,6.2078,1249.9,1249.8,1.19873856]
[1672909293461,6.2078,1249.9,1249.7,1.19873856]
[1672909293666,9.793253,1249.9,1249.6,2.99695542]
[1672909293881,6.585453,1249.9,1249.7,1.19873856]
[1672909294092,3.2078,1249.8,1249.7,1.19873856]
[1672909294409,3.2078,1249.8,1249.6,2.99695542]
[1672909294720,8.38445158,1249.7,1249.6,5.99695542]
[1672909295563,8.38445158,1249.7,1249.6,2.99695542]
[1672909296296,5.39308959,1249.7,1249.6,1.19873856]
[1672909296824,5.39308959,1249.7,1249.6,5.99695542]
[1672909297034,5.39308959,1249.7,1249.6,4.19873856]
[1672909297237,5.39308959,1249.7,1249.6,1.19873856]
[1672909299557,5.39308959,1249.7,1249.6,2.99695542]
[1672909299763,5.39308959,1249.7,1249.6,1.19873856]
[1672909299970,8.60088959,1249.7,1249.6,1.19873856]
[1672909301128,5.60088959,1249.7,1249.6,1.19873856]
[1672909301341,5.00147398,1249.7,1249.6,4.79821686]
[1672909302803,5.00147398,1249.7,1249.6,7.19622459]
[1672909303015,5.00147398,1249.7,1249.6,5.39800773]
[1672909303230,5.00147398,1249.7,1249.6,6.81614318]
[1672909304915,5.00147398,1249.7,1249.6,7.19487403]
[1672909305338,7.39456357,1249.7,1249.6,7.19487403]
[1672909305861,7.39456357,1249.7,1249.6,5.39800773]
[1672909306072,7.39456357,1249.7,1249.6,7.1951418]
[1672909307129,5.60088959,1249.7,1249.6,5.39800773]
[1672909308065,5.60088959,1249.7,1249.6,2.39800773]
[1672909308269,5.60088959,1249.7,1249.6,4.1958042]
[1672909308479,5.5971446,1249.7,1249.6,1.79779647]
[1672909309128,8.58850659,1249.7,1249.6,1.79779647]
[1672909309539,5.5971446,1249.7,1249.6,1.79779647]
[1672909309750,8.58850659,1249.7,1249.6,1.79779647]
[1672909310593,5.5971446,1249.7,1249.6,4.1958042]
[1672909311118,5.5971446,1249.7,1249.6,2.39800773]
[1672909313539,9.195417,1249.7,1249.6,1.79866198]
[1672909313743,9.195417,1249.7,1249.6,4.79866198]
[1672909313951,9.195417,1249.7,1249.6,1.79866198]
[1672909317326,9.19916199,1249.7,1249.6,1.79866198]
[1672909318586,9.19916199,1249.7,1249.6,4.19666971]
[1672909319949,9.19916199,1249.7,1249.6,1.79866198]
[1672909320153,9.19916199,1249.7,1249.6,4.19666971]
[1672909320680,11.59417832,1249.7,1249.6,4.19666971]
[1672909321417,8.59417832,1249.7,1249.6,4.19666971]
[1672909321947,6.19916199,1249.7,1249.6,1.79866198]
[1672909322472,6.19916199,1249.7,1249.6,4.19666971]
[1672909322893,6.19916199,1249.7,1249.6,1.79866198]
[1672909323937,2.99136199,1249.7,1249.6,1.79866198]
[1672909324145,6.19916199,1249.7,1249.6,1.79866198]
[1672909324360,5.60296296,1249.7,1249.6,2.39800773]
[1672909324569,5.60296296,1249.7,1249.6,5.39800773]
[1672909324786,5.60296296,1249.7,1249.6,6.81620161]
[1672909325418,5.60296296,1249.7,1249.6,6.81306703]
[1672909326468,5.00425728,1249.7,1249.6,7.414755]
[1672909327305,7.39942024,1249.7,1249.6,7.414755]
[1672909328676,5.00425728,1249.7,1249.6,7.414755]
[1672909329412,7.39942024,1249.7,1249.6,7.414755]
[1672909330569,4.19162024,1249.7,1249.6,7.414755]
[1672909333622,5.60296296,1249.7,1249.6,7.414755]
[1672909334151,5.60296296,1249.7,1249.6,4.41819388]
[1672909336986,2.39516296,1249.7,1249.6,4.41819388]
[1672909337196,5.60296296,1249.7,1249.6,4.41819388]
[1672909338037,2.39516296,1249.7,1249.6,4.41819388]
[1672909338248,5.60296296,1249.7,1249.6,4.41819388]
[1672909338558,2.39516296,1249.7,1249.6,4.41819388]
[1672909338875,5.60296296,1249.7,1249.6,4.41819388]
[1672909339296,2.39516296,1249.7,1249.6,4.41819388]
[1672909339508,5.60296296,1249.7,1249.6,4.41819388]
[1672909342869,2.39516296,1249.7,1249.6,4.41819388]
[1672909343081,5.60296296,1249.7,1249.6,4.41819388]
[1672909346654,2.39516296,1249.7,1249.6,4.41819388]
[1672909346866,5.60296296,1249.7,1249.6,4.41819388]
[1672909347499,2.39516296,1249.7,1249.6,4.41819388]
[1672909347708,5.60296296,1249.7,1249.6,4.41819388]
[1672909350435,5.60296296,1249.7,1249.6,1.41819388]